bitfinex/quotes_SOLUSD_20240826
["timestamp","ask_amount","ask_price","bid_price","bid_amount"]
[1724666038331,6.2352,160.38,160.3,11.95926818]
[1724666038525,1.55924829,160.37,160.3,11.95926818]
[1724666039466,6.236,160.36,160.27,11.95926818]
[1724666039653,6.236,160.36,160.27,13.20666706]
[1724666039824,1.55957715,160.35,160.27,11.95926818]
[1724666040026,1.55957715,160.35,160.26,29.91749376]
[1724666040344,1.55957715,160.35,160.27,21.56145794]
[1724666040543,1.55957715,160.35,160.27,20.0]
[1724666040847,6.236,160.36,160.27,21.24762219]
[1724666041538,1.5595363,160.35,160.28,1.56140239]
[1724666041743,1.5595363,160.35,160.29,1.56140239]
[1724666041922,1.5595363,160.35,160.28,45.0]
[1724666042125,1.5595363,160.35,160.29,1.56134568]
[1724666042324,1.5595363,160.35,160.3,1.5613214]
[1724666042628,1.55933271,160.37,160.28,74.91749376]
[1724666043024,1.55933271,160.37,160.29,1.56124018]
[1724666043224,1.55933271,160.37,160.3,1.56124018]
[1724666043426,1.55933271,160.37,160.28,74.91749376]
[1724666043643,1.55933271,160.37,160.29,1.56124084]
[1724666043853,1.55933271,160.37,160.3,1.56124084]
[1724666044038,1.55933271,160.37,160.28,74.91749376]
[1724666044349,1.55933271,160.37,160.29,1.56130477]
[1724666044536,1.55933271,160.37,160.3,1.56130477]
[1724666044747,1.55933271,160.37,160.29,1.56136866]
[1724666044941,1.55933271,160.37,160.3,1.56130439]
[1724666045254,1.55933271,160.37,160.28,74.91749376]
[1724666045453,1.55933271,160.37,160.29,1.56130401]
[1724666045760,1.55933271,160.37,160.3,1.56130401]
[1724666046060,1.55933271,160.37,160.28,74.91749376]
[1724666046231,1.55933271,160.37,160.29,1.56130407]
[1724666046431,1.55933271,160.37,160.3,1.56130407]
[1724666046637,1.55933271,160.37,160.28,74.91749376]
[1724666046841,1.55933271,160.37,160.29,1.56136111]
[1724666047040,1.55933271,160.37,160.28,74.91749376]
[1724666047229,1.55933271,160.37,160.29,1.56136111]
[1724666047553,1.55933271,160.37,160.3,1.56130451]
[1724666047850,1.55933271,160.37,160.28,74.91749376]
[1724666048054,7.79493271,160.37,160.29,1.56130407]
[1724666048246,7.79493271,160.37,160.28,74.91749376]
[1724666048439,7.79493271,160.37,160.29,1.56136892]
[1724666048648,7.79493271,160.37,160.28,74.91749376]
[1724666048833,7.79493271,160.37,160.29,1.56136924]
[1724666049034,7.79493271,160.37,160.28,74.91749376]
[1724666049242,7.79493271,160.37,160.29,1.56137367]
[1724666049550,7.79493271,160.37,160.28,45.0]
[1724666049754,7.79493271,160.37,160.29,1.56137324]
[1724666049959,6.6187,160.35,160.27,20.0]
[1724666050247,1.55956666,160.34,160.28,1.56144534]
[1724666050430,1.55956666,160.34,160.29,1.56144534]
[1724666050634,1.55956666,160.34,160.26,10.63979236]
[1724666050874,1.55956666,160.34,160.27,4.98602396]
[1724666051155,1.55956666,160.34,160.28,1.56143821]
[1724666051156,31.47706042,160.34,160.28,1.56143821]
[1724666051325,31.47706042,160.34,160.24,10.64126559]
[1724666051528,31.47706042,160.34,160.25,6.23581312]
[1724666051730,31.47706042,160.34,160.26,4.98661265]
[1724666052033,31.47706042,160.34,160.21,29.91749376]
[1724666052227,31.47706042,160.34,160.27,1.56149968]
[1724666052463,6.2372,160.33,160.28,1.56149968]
[1724666052749,1.55974225,160.32,160.25,1.24919974]
[1724666052957,1.55974225,160.32,160.26,4.98662444]
[1724666053249,1.55974225,160.32,160.27,1.56149792]
[1724666053450,6.6187,160.35,160.28,1.56149792]
[1724666053630,8.17823434,160.35,160.29,1.56147755]
[1724666053835,8.17823434,160.35,160.24,7.82389611]
[1724666054134,14.41453434,160.35,160.25,81.15303508]
[1724666054334,14.41453434,160.35,160.26,6.23554132]
[1724666054532,14.41453434,160.35,160.27,4.9863667]
[1724666054732,14.41453434,160.35,160.28,1.56146828]
[1724666054934,14.41453434,160.35,160.27,3.42489842]
[1724666055160,14.41453434,160.35,160.28,1.56148661]
[1724666055338,14.41453434,160.35,160.27,3.42509614]
[1724666055542,14.41453434,160.35,160.28,1.56148667]
[1724666055856,14.41453434,160.35,160.27,3.42511121]
[1724666056155,14.41453434,160.35,160.28,1.56147998]
[1724666056349,14.41453434,160.35,160.29,1.56147998]
[1724666056567,14.41453434,160.35,160.27,3.42511121]
[1724666056746,14.41453434,160.35,160.28,1.56148024]
[1724666056937,14.41453434,160.35,160.27,3.42511121]
[1724666057273,14.41453434,160.35,160.28,1.56148024]
[1724666057553,14.41453434,160.35,160.29,1.56148024]
[1724666057943,14.41453434,160.35,160.27,3.42533288]
[1724666059535,8.17823434,160.35,160.25,74.91749376]
[1724666059735,6.237,160.34,160.28,4.98651816]
[1724666060051,1.55979541,160.33,160.28,4.98651816]
[1724666060252,1.55973902,160.32,160.28,4.98651816]
[1724666060653,1.55973902,160.32,160.28,1.56147893]
[1724666061369,1.5597181,160.34,160.28,1.56147893]
[1724666061670,1.5597181,160.34,160.29,1.56147893]
[1724666061959,1.5597181,160.34,160.25,29.91749376]
[1724666062139,1.5597181,160.34,160.27,11.96802364]
[1724666063638,8.17829399,160.35,160.27,11.96802364]
[1724666063962,8.17829399,160.35,160.24,67.87209456]
[1724666063963,8.17829399,160.35,160.29,11.96802364]
[1724666066440,8.17829399,160.35,160.28,11.96802364]
[1724666067151,8.17829399,160.35,160.29,1.56147875]
[1724666067447,8.17829399,160.35,160.28,11.96802364]
[1724666068960,6.6187,160.35,160.28,11.96802364]
[1724666073743,6.6187,160.35,160.28,11.96802364]
[1724666073963,6.6187,160.35,160.29,3.42487538]
[1724666074166,1.55960592,160.34,160.26,19.79131806]
[1724666074361,1.55960592,160.34,160.27,4.67406862]
[1724666074667,1.55960592,160.34,160.28,4.67406862]
[1724666074867,1.55960592,160.34,160.29,3.42488692]
[1724666075069,1.55960592,160.34,160.26,19.79131806]
[1724666075254,6.6187,160.35,160.27,4.67410406]
[1724666075462,6.6187,160.35,160.28,4.67410406]
[1724666075768,6.6187,160.35,160.29,4.67410406]
[1724666076069,6.6187,160.35,160.26,19.79131806]
[1724666076365,1.55960627,160.34,160.27,4.67410412]
[1724666076550,1.55960627,160.34,160.24,7.73628306]
[1724666076551,11.96802364,160.33,160.22,20.0]
[1724666076768,1.55974267,160.32,160.25,11.96802364]
[1724666077068,1.55974267,160.32,160.26,1.2492818]
[1724666077296,1.55974267,160.32,160.27,1.2492818]
[1724666077450,1.55974267,160.32,160.25,11.96802364]
[1724666077771,1.55974051,160.34,160.26,1.24928885]
[1724666078073,1.55974051,160.34,160.27,1.24928885]
[1724666078270,1.55974051,160.34,160.25,11.96802364]
[1724666078570,1.55974051,160.34,160.26,1.24929494]
[1724666078775,1.55974051,160.34,160.27,1.24929494]
[1724666078983,1.55974051,160.34,160.25,11.96802364]
[1724666079154,1.55974051,160.34,160.26,1.24929911]
[1724666079473,1.55974051,160.34,160.27,1.24929911]
[1724666079683,24.82312364,160.35,160.25,11.96802364]
[1724666079684,1.55974161,160.33,160.25,11.96802364]
[1724666079977,1.5599378,160.32,160.26,1.24930041]
[1724666080149,63.20482364,160.34,160.27,1.24930041]
[1724666080475,1.55992671,160.33,160.25,11.96802364]
[1724666080687,1.55994018,160.32,160.26,1.24930036]
[1724666080979,1.55994018,160.32,160.27,1.24930036]
[1724666081274,1.55994018,160.32,160.24,20.0]
[1724666081468,1.55994018,160.32,160.25,1.24930226]
[1724666081682,1.55994018,160.32,160.26,1.24930226]
[1724666081859,1.55994018,160.32,160.27,1.24930226]
[1724666082061,1.55994018,160.32,160.24,20.0]
[1724666082381,18.20502364,160.34,160.25,1.24930323]
[1724666082564,18.20502364,160.34,160.26,1.24930323]
[1724666082867,18.20502364,160.34,160.27,1.24930297]
[1724666083051,18.20502364,160.34,160.24,21.24794979]
[1724666083251,18.20502364,160.34,160.25,1.24930272]
[1724666083447,18.20502364,160.34,160.26,1.24930272]
[1724666083670,18.20502364,160.34,160.27,1.24930272]
[1724666083857,18.20502364,160.34,160.24,21.24794979]
[1724666084065,11.96802364,160.34,160.25,13.21732713]
[1724666084271,11.96802364,160.34,160.26,1.24930349]
[1724666084470,18.20472364,160.34,160.27,1.24930349]
[1724666084676,18.20472364,160.34,160.25,11.96802364]
[1724666084855,18.20472364,160.34,160.26,1.24930272]
[1724666085056,18.20472364,160.34,160.27,1.24930272]
[1724666085252,18.20472364,160.34,160.25,11.96802364]
[1724666085452,18.20472364,160.34,160.26,1.24930323]
[1724666085653,18.20472364,160.34,160.27,1.24930323]
[1724666085956,18.20472364,160.34,160.25,11.96802364]
[1724666086160,18.20472364,160.34,160.26,1.24930324]
[1724666086366,18.20472364,160.34,160.25,11.96802364]
[1724666086570,18.20472364,160.34,160.26,1.24930298]
[1724666086774,18.20472364,160.34,160.27,1.24930298]
[1724666086981,18.20472364,160.34,160.25,11.96802364]
[1724666087183,18.20472364,160.34,160.26,1.24930324]
[1724666087476,18.20472364,160.34,160.27,1.24930324]
[1724666087678,18.20472364,160.34,160.25,11.96802364]
[1724666088870,18.20472364,160.34,160.24,20.0]
[1724666089567,18.20472364,160.34,160.24,21.24794604]
[1724666090771,408.50472364,160.34,160.24,21.24794604]
[1724666091675,18.20552364,160.32,160.22,11.96802364]
[1724666091978,1.56010814,160.31,160.22,11.96802364]
[1724666092362,1.56010814,160.31,160.24,11.96802364]
[1724666092552,73.0518,160.33,160.24,11.96802364]
[1724666092758,21.8147,160.33,160.24,11.96802364]
[1724666093090,1.55992036,160.32,160.24,11.96802364]
[1724666094168,1.55991991,160.31,160.24,11.96802364]
[1724666094364,21.8147,160.33,160.26,11.96802364]
[1724666094674,21.8147,160.33,160.27,1.24769711]
[1724666095257,23.37429701,160.33,160.26,11.96802364]
[1724666095473,1.5595986,160.32,160.26,11.96802364]
[1724666095775,21.8147,160.33,160.28,11.96802364]
[1724666095976,390.3,160.34,160.3,11.96802364]
[1724666096687,390.3,160.34,160.24,67.87209456]
[1724666096688,390.3,160.34,160.32,11.96802364]
[1724666096976,21.519,160.37,160.32,11.96802364]
[1724666098293,1.55922272,160.36,160.3,11.96802364]
[1724666098581,1.55929405,160.35,160.3,11.96802364]
[1724666098875,1.55929405,160.35,160.28,11.96802364]
[1724666099779,21.519,160.37,160.28,11.96802364]
[1724666099982,21.519,160.37,160.29,1.2475797]
[1724666100559,1.55947326,160.36,160.28,11.96802364]
[1724666100975,21.519,160.37,160.26,15.0661]
[1724666100976,21.519,160.37,160.3,11.96802364]
[1724666101176,21.519,160.37,160.32,11.96802364]
[1724666101378,6.0485,160.37,160.32,11.96802364]
[1724666103995,1.5590451,160.36,160.26,41.59333555]
[1724666104166,7.60774962,160.37,160.3,11.96802364]
[1724666108291,6.0485,160.37,160.31,1.24739973]
[1724666109293,6.0485,160.37,160.3,11.96802364]
[1724666111692,16.0886,160.35,160.26,15.0661]
[1724666111990,16.0886,160.35,160.26,27.03412364]
[1724666111991,1.55953788,160.34,160.26,27.03412364]
[1724666112383,1.55953788,160.34,160.27,11.96802364]
[1724666113483,1.55953788,160.34,160.24,2.65949671]
[1724666113689,1.55953788,160.34,160.21,47.2382207]
[1724666113690,1.55953788,160.34,160.25,11.96802364]
[1724666113925,13.52756152,160.34,160.25,11.96802364]
[1724666114219,6.4064,160.33,160.25,11.96802364]
[1724666114382,1.55983393,160.32,160.25,11.96802364]
[1724666114582,1.55983393,160.32,160.21,27.2382207]
[1724666114806,1.55983393,160.32,160.25,11.96802364]
[1724666115194,1.55983393,160.32,160.21,27.2382207]
[1724666115413,1.55983393,160.32,160.25,11.96802364]
[1724666115987,1.55983393,160.32,160.24,11.96802364]
[1724666119706,11.96802364,160.3,160.21,12.2201207]
[1724666119892,15.6568,160.31,160.24,11.96802364]
[1724666120086,15.6568,160.31,160.19,29.16365481]
[1724666120087,15.6568,160.31,160.26,11.96802364]
[1724666120292,15.6568,160.31,160.27,1.24775717]
[1724666120734,15.6568,160.31,160.26,11.96802364]
[1724666122001,15.6568,160.31,160.25,11.96802364]
[1724666122203,15.6568,160.31,160.26,1.24777919]
[1724666122391,15.6568,160.31,160.26,11.96802364]
[1724666122592,15.6568,160.31,160.27,1.24777147]
[1724666123095,15.6568,160.31,160.26,11.96802364]
[1724666124222,15.6568,160.31,160.23,1.24776054]
[1724666124513,15.6568,160.31,160.24,11.96802364]
[1724666124816,15.6568,160.31,160.26,11.96802364]
[1724666125432,15.6568,160.31,160.27,1.2479417]
[1724666125604,6.4064,160.33,160.28,11.96802364]
[1724666126415,1.5596106,160.32,160.19,26.52194468]
[1724666126617,1.5596106,160.32,160.25,11.96802364]
[1724666126822,6.4064,160.33,160.25,11.96802364]
[1724666127110,6.4064,160.33,160.27,11.96802364]
[1724666127511,1.55956958,160.32,160.27,11.96802364]
[1724666129112,6.4064,160.33,160.27,11.96802364]
[1724666129722,1.55971358,160.32,160.27,11.96802364]
[1724666130405,6.4064,160.33,160.27,11.96802364]
[1724666131527,6.4064,160.33,160.22,20.0]
[1724666131705,1.55960075,160.32,160.27,11.96802364]
[1724666134434,1.55960075,160.32,160.23,65.0]
[1724666134613,1.55960075,160.32,160.27,11.96802364]
[1724666137234,6.4064,160.33,160.29,11.96802364]
[1724666137436,15.2182,160.35,160.31,11.96802364]
[1724666137621,15.2182,160.35,160.33,11.96802364]
[1724666138420,6.6578,160.38,160.33,11.96802364]
[1724666141241,1.55907969,160.37,160.33,11.96802364]
[1724666141741,1.55907969,160.37,160.26,20.0]
[1724666141942,1.55907969,160.37,160.3,11.96802364]
[1724666143426,6.6578,160.38,160.34,11.96802364]
[1724666145239,8.21674851,160.38,160.34,11.96802364]
[1724666145443,8.21674851,160.38,160.32,11.96802364]
[1724666145639,8.21674851,160.38,160.34,11.96802364]
[1724666145940,6.6578,160.38,160.34,11.96802364]
[1724666147738,1.55902832,160.37,160.32,11.96802364]
[1724666148929,1.55902832,160.37,160.25,6.246]
[1724666149134,1.55902832,160.37,160.32,11.96802364]
[1724666150538,1.55902832,160.37,160.26,20.0]
[1724666150735,1.55902832,160.37,160.3,11.96802364]
[1724666151844,1.55936875,160.37,160.3,11.96802364]
[1724666152058,8.21700011,160.38,160.32,11.96802364]
[1724666152534,8.21698363,160.38,160.32,11.96802364]
[1724666154636,6.6578,160.38,160.32,11.96802364]
[1724666155361,6.6578,160.38,160.33,1.24733147]
[1724666155647,6.6578,160.38,160.32,11.96802364]
[1724666157070,6.6578,160.38,160.33,1.24721779]
[1724666157237,6.6578,160.38,160.32,11.96802364]
[1724666157835,6.6578,160.38,160.34,11.96802364]
[1724666158039,6.6578,160.38,160.35,1.24711967]
[1724666158547,15.0356,160.39,160.35,1.24711967]
[1724666158548,15.0356,160.39,160.36,11.96802364]
[1724666158748,0.1,160.4,160.36,11.96802364]
[1724666160746,0.1,160.4,160.34,11.96802364]
[1724666161738,0.1,160.4,160.36,11.96802364]
[1724666162241,1.65865175,160.4,160.36,11.96802364]
[1724666163142,0.1,160.4,160.38,11.96802364]
[1724666163337,0.1,160.4,160.36,11.96802364]
[1724666163740,0.1,160.4,160.35,11.96802364]
[1724666163943,0.1,160.4,160.36,45.0]
[1724666164454,0.1,160.4,160.35,11.96802364]
[1724666165255,0.1,160.4,160.37,11.96802364]
[1724666167170,0.1,160.4,160.36,45.0]
[1724666167426,0.1,160.4,160.37,20.0]
[1724666168046,0.1,160.4,160.36,20.0]
[1724666169943,0.1,160.4,160.36,11.96802364]
[1724666170140,0.1,160.4,160.37,20.0]
[1724666172967,0.1,160.4,160.38,1.24686728]
[1724666173268,0.1,160.4,160.38,11.96802364]
[1724666174059,0.1,160.4,160.38,13.2148884]
[1724666176947,0.1,160.4,160.38,1.24686476]
[1724666179179,0.1,160.4,160.39,11.96802364]
[1724666179352,0.1,160.4,160.39,76.96802364]
[1724666180776,390.3,160.46,160.4,20.0]
[1724666180973,390.3,160.46,160.44,11.96802364]
[1724666181652,390.3,160.46,160.42,11.96802364]
[1724666181853,390.3,160.46,160.43,20.0]
[1724666182063,390.3,160.46,160.41,11.96802364]
[1724666182380,390.3,160.46,160.42,20.0]
[1724666184903,1.55826463,160.45,160.41,11.96802364]
[1724666185591,6.381,160.45,160.36,1.24666992]
[1724666185798,7.93949066,160.45,160.38,11.96802364]
[1724666185983,7.93949066,160.45,160.39,20.0]
[1724666186224,1.55855373,160.44,160.37,11.96802364]
[1724666187479,1.55855373,160.44,160.38,20.0]
[1724666187683,7.79145373,160.44,160.37,11.96802364]
[1724666188690,1.55855373,160.44,160.37,11.96802364]
[1724666189912,6.381,160.45,160.38,1.24692512]
[1724666190793,1.5585287,160.44,160.37,11.96802364]
[1724666191109,6.381,160.45,160.37,11.96802364]
[1724666191309,6.381,160.45,160.38,1.24682481]
[1724666191606,12.6135,160.45,160.37,11.96802364]
[1724666192514,1.55853109,160.44,160.37,11.96802364]
[1724666193691,6.381,160.45,160.38,1.24682481]
[1724666194012,6.381,160.45,160.37,11.96802364]
[1724666194303,1.55853128,160.44,160.37,11.96802364]
[1724666195603,6.381,160.45,160.38,1.24682613]
[1724666197512,1.55853049,160.44,160.37,11.96802364]
[1724666198007,6.381,160.45,160.37,11.96802364]
[1724666198394,6.381,160.45,160.38,1.24682244]
[1724666199707,1.55857455,160.44,160.36,11.96802364]
[1724666199910,1.55857455,160.44,160.37,20.0]
[1724666201712,27.33582364,160.43,160.34,11.96802364]
[1724666201910,1.55865901,160.42,160.35,65.0]
[1724666202413,1.55865901,160.42,160.31,15.1164]
[1724666202414,11.96802364,160.41,160.31,17.7229416]
[1724666202599,7.62695973,160.4,160.31,11.96802364]
[1724666202915,1.55895973,160.39,160.31,11.96802364]
[1724666203619,6.068,160.4,160.33,11.96802364]
[1724666204315,6.068,160.4,160.35,11.96802364]
[1724666204516,6.068,160.4,160.36,21.24693292]
[1724666204812,6.068,160.4,160.36,20.0]
[1724666205695,1.55891362,160.39,160.34,20.0]
[1724666205901,7.62689591,160.4,160.34,20.0]
[1724666206309,6.068,160.4,160.34,20.0]
[1724666207235,1.55890119,160.39,160.33,11.96802364]
[1724666208415,1.55890119,160.39,160.32,11.96802364]
[1724666208616,6.068,160.4,160.33,65.0]
[1724666208799,6.068,160.4,160.34,11.96802364]
[1724666215510,6.068,160.4,160.35,1.24703097]
[1724666215714,6.068,160.4,160.36,13.21498234]
[1724666216120,6.068,160.4,160.36,11.96802364]
[1724666217106,6.068,160.4,160.37,1.24695834]
[1724666218516,6.068,160.4,160.36,11.96802364]
[1724666219429,6.068,160.4,160.35,65.0]
[1724666220747,6.068,160.4,160.29,20.0]
[1724666220748,1.55870244,160.39,160.29,20.0]
[1724666220944,1.55870244,160.39,160.33,11.96802364]
[1724666221544,1.55870244,160.39,160.34,20.0]
[1724666221839,1.55870244,160.39,160.28,3.31990027]
[1724666222034,15.6865,160.38,160.3,11.96802364]
[1724666222333,15.6865,160.38,160.32,11.96802364]
[1724666222544,1.55908952,160.37,160.33,20.0]
[1724666224521,17.24561716,160.38,160.33,20.0]
[1724666225831,17.24561716,160.38,160.32,11.96802364]
[1724666227548,18.05412364,160.37,160.24,47.87209456]
[1724666227745,1.55930101,160.36,160.28,11.96802364]
[1724666228051,1.55930101,160.36,160.25,21.24892595]
[1724666228052,1.55930101,160.36,160.29,20.0]
[1724666228228,1.55930101,160.36,160.28,11.96802364]
[1724666228429,1.55930101,160.36,160.29,20.0]
[1724666229053,6.0861,160.37,160.32,11.96802364]
[1724666230858,6.0861,160.37,160.34,11.96802364]
[1724666238672,6.0861,160.37,160.29,43.23494555]
[1724666238875,6.0861,160.37,160.32,11.96802364]
[1724666239042,6.0861,160.37,160.33,20.0]
[1724666241657,7.645046,160.37,160.33,20.0]
[1724666241870,7.645046,160.37,160.31,20.0]
[1724666242072,6.0861,160.37,160.31,20.0]
[1724666242363,1.55916198,160.36,160.31,20.0]
[1724666242967,1.55916198,160.36,160.27,3.20852514]
[1724666243162,1.55916198,160.36,160.29,11.96802364]
[1724666243487,6.0861,160.37,160.31,11.96802364]
[1724666243647,6.0861,160.37,160.33,11.96802364]
[1724666244849,6.0861,160.37,160.34,20.0]
[1724666245864,6.2601,160.41,160.35,13.21517957]
[1724666246064,6.2601,160.41,160.37,11.96802364]
[1724666246364,6.2601,160.41,160.38,1.24690029]
[1724666247858,27.87925981,160.45,160.39,11.96802364]
[1724666248059,6.0246,160.45,160.4,1.24665235]
[1724666249970,6.0246,160.45,160.41,11.96802364]
[1724666250262,6.0246,160.45,160.41,13.21463533]
[1724666250447,6.0246,160.45,160.41,11.96802364]
[1724666252244,6.6593,160.49,160.43,11.96802364]
[1724666252471,8.21735592,160.49,160.43,11.96802364]
[1724666252651,8.21735592,160.49,160.37,20.0]
[1724666252652,8.21735592,160.49,160.41,11.96802364]
[1724666252852,8.21735592,160.49,160.42,20.0]
[1724666253372,6.6593,160.49,160.43,1.24648208]
[1724666253543,6.6593,160.49,160.42,20.0]
[1724666253870,1.55810473,160.48,160.39,11.96802364]
[1724666254067,1.55810473,160.48,160.4,20.0]
[1724666258662,1.55810473,160.48,160.4,11.96802364]
[1724666258984,1.55810473,160.48,160.41,20.0]
[1724666263167,6.6593,160.49,160.42,13.21456266]
[1724666263358,6.6593,160.49,160.43,1.24643592]
[1724666263558,6.6593,160.49,160.42,56.96802364]
[1724666263775,8.2173473,160.49,160.42,56.96802364]
[1724666263963,1.5580473,160.48,160.42,56.96802364]
[1724666264757,8.2173566,160.49,160.42,56.96802364]
[1724666265664,1.55805397,160.48,160.42,56.96802364]
[1724666268864,8.21735375,160.49,160.42,56.96802364]
[1724666269768,6.6593,160.49,160.42,56.96802364]
[1724666270899,6.6593,160.49,160.43,1.24638635]
[1724666271196,6.6593,160.49,160.44,11.96802364]
[1724666271967,1.55792063,160.48,160.42,56.96802364]
[1724666272167,1.55792063,160.48,160.43,20.0]
[1724666274002,1.55799868,160.48,160.43,20.0]
[1724666274778,6.6593,160.49,160.43,20.0]
[1724666276464,6.6593,160.49,160.44,11.96802364]
[1724666277789,1.5579187,160.48,160.44,11.96802364]
[1724666278491,8.21729985,160.49,160.44,11.96802364]
[1724666279188,6.6593,160.49,160.45,1.24639991]
[1724666279576,6.6593,160.49,160.44,11.96802364]
[1724666279772,6.6593,160.49,160.43,31.96802364]
[1724666279977,8.21724159,160.49,160.43,31.96802364]
[1724666280388,6.6593,160.49,160.43,31.96802364]
[1724666280593,8.21724101,160.49,160.43,31.96802364]
[1724666280808,6.6593,160.49,160.45,11.96802364]
[1724666280993,15.1815,160.5,160.47,11.96802364]
[1724666281472,15.1815,160.5,160.43,20.0]
[1724666281678,15.1815,160.5,160.45,11.96802364]
[1724666281892,15.1815,160.5,160.46,20.0]
[1724666283200,0.8218083,160.52,160.46,20.0]
[1724666283379,2.37945847,160.52,160.46,20.0]
[1724666284998,0.8218083,160.52,160.47,11.96802364]
[1724666286106,0.8218083,160.52,160.49,11.96802364]
[1724666286488,0.8218083,160.52,160.5,21.24593327]
[1724666286678,0.8218083,160.52,160.51,11.96802364]
[1724666287203,0.8218083,160.52,160.51,56.96802364]
[1724666287709,0.8218083,160.52,160.51,45.0]
[1724666287910,0.8218083,160.52,160.51,56.96802364]
[1724666288096,0.8218083,160.52,160.5,11.96802364]
[1724666288406,0.8218083,160.52,160.51,65.0]
[1724666289009,0.8218083,160.52,160.51,66.24568252]
[1724666290007,0.8218083,160.52,160.51,66.24567733]
[1724666290306,405.5401,160.61,160.51,101.3833]
[1724666290307,15.2401,160.61,160.51,101.3833]
[1724666290610,15.2401,160.61,160.55,11.96802364]
[1724666290782,6.4019,160.63,160.56,65.0]
[1724666295404,6.4019,160.63,160.57,11.96802364]
[1724666295811,6.4019,160.63,160.58,20.0]
[1724666296002,1.55663593,160.62,160.56,65.0]
[1724666296218,7.95864641,160.63,160.56,20.0]
[1724666296417,7.95864641,160.63,160.55,20.0]
[1724666296722,6.4019,160.63,160.56,56.96802364]
[1724666297017,6.4019,160.63,160.57,20.0]
[1724666299701,6.50998097,160.66,160.6,11.96802364]
[1724666300031,6.5909,160.67,160.61,1.24501831]
[1724666300595,6.5909,160.67,160.6,11.96802364]
[1724666300939,8.14716233,160.67,160.59,20.0]
[1724666301297,11.96802364,160.65,160.59,20.0]
[1724666301522,13.52454666,160.65,160.59,20.0]
[1724666301701,13.52454666,160.65,160.55,11.96802364]
[1724666301702,13.52454666,160.65,160.56,20.0]
[1724666301993,1.55670487,160.64,160.56,20.0]
[1724666302198,1.55670487,160.64,160.55,11.96802364]
[1724666302597,6.2261,160.62,160.53,15.7441]
[1724666302798,13.52496383,160.61,160.53,15.7441]
[1724666303004,1.55698088,160.6,160.52,11.96802364]
[1724666303200,7.78358088,160.6,160.5,11.96802364]
[1724666303404,6.5169,160.62,160.53,11.96802364]
[1724666303608,1.55692809,160.61,160.49,16.633]
[1724666303811,1.55701793,160.6,160.53,11.96802364]
[1724666304403,11.96802364,160.57,160.45,22.246]
[1724666304629,1.55742558,160.56,160.47,11.96802364]
[1724666305005,6.2286,160.55,160.46,11.96802364]
[1724666305207,11.96802364,160.57,160.46,11.96802364]
[1724666305415,19.75317115,160.57,160.48,11.96802364]
[1724666306222,19.75317115,160.57,160.49,20.0]
[1724666307324,6.2282,160.56,160.49,20.0]
[1724666307701,6.2282,160.56,160.47,20.0]
[1724666307911,11.96802364,160.57,160.47,20.0]
[1724666308225,11.96802364,160.51,160.41,6.246]
[1724666308420,7.78859449,160.5,160.41,6.246]
[1724666308815,11.96802364,160.49,160.41,6.246]
[1724666309018,28.40762364,160.47,160.41,6.246]
[1724666309324,1.55823927,160.46,160.41,6.246]
[1724666309917,6.0008,160.45,160.41,6.246]
[1724666310222,7.55914501,160.45,160.41,6.246]
[1724666310428,6.0008,160.45,160.41,6.246]
[1724666310814,16.4396,160.47,160.41,6.246]
[1724666310815,16.4396,160.47,160.41,36.12872501]
[1724666311809,16.4396,160.47,160.42,45.0]
[1724666314530,1.55798812,160.48,160.42,45.0]
[1724666315045,6.5622,160.49,160.43,1.24641701]
[1724666316236,6.5622,160.49,160.42,45.0]
[1724666317631,16.5303,160.52,160.45,20.0]
[1724666318330,16.5303,160.52,160.45,49.88272501]
[1724666318724,6.2016,160.53,160.47,29.88272501]
[1724666321822,16.69233548,160.56,160.48,20.0]
[1724666323516,22.92083548,160.56,160.48,20.0]
[1724666323717,16.69233548,160.56,160.47,20.0]
[1724666324323,22.92053548,160.56,160.47,19.01]
[1724666324838,1.55773751,160.55,160.44,15.4997]
[1724666325024,1.55774935,160.54,160.45,45.0]
[1724666325630,1.55773624,160.55,160.45,74.88272501]
[1724666326228,1.55747773,160.54,160.45,74.88272501]
[1724666326628,1.55747773,160.54,160.46,20.0]
[1724666326840,1.55747773,160.54,160.47,45.0]
[1724666327048,1.55747773,160.54,160.48,20.0]
[1724666327355,1.5574174,160.55,160.48,20.0]
[1724666328724,1.5574174,160.55,160.47,74.88272501]
[1724666329351,1.5574174,160.55,160.48,20.0]
[1724666329954,6.6309,160.57,160.49,31.12866686]